bitfinex-derivatives/quotes_ETHF0:USTF0_20250831
["timestamp","ask_amount","ask_price","bid_price","bid_amount"]
[1756612004381,0.2902,4466.6,4465.7,0.1975]
[1756612004581,0.492,4466.6,4466.5,0.3937]
[1756612006987,3.2078,4466.7,4466.5,0.3937]
[1756612007182,3.6998,4467.2,4467.1,0.3937]
[1756612007381,0.2902,4467.6,4467.5,0.3937]
[1756612007992,3.2078,4467.7,4467.6,0.1975]
[1756612008182,3.2078,4467.7,4467.6,0.3937]
[1756612008889,0.2902,4467.9,4467.8,0.1962]
[1756612009088,0.492,4467.9,4467.8,0.3937]
[1756612009286,0.2018,4467.9,4467.0,3.2078]
[1756612009482,0.492,4467.2,4467.1,0.6207]
[1756612009978,0.492,4467.1,4467.0,3.2078]
[1756612010181,0.492,4466.6,4466.5,3.6015]
[1756612010380,0.492,4466.6,4466.5,3.8285]
[1756612012583,3.2078,4467.4,4466.5,3.8285]
[1756612012785,0.2902,4467.3,4466.6,0.1975]
[1756612020289,0.492,4467.3,4466.5,3.2078]
[1756612020495,0.492,4466.7,4466.6,0.6207]
[1756612021891,0.492,4466.7,4466.6,0.3937]
[1756612022092,0.492,4466.7,4466.6,0.6207]
[1756612025297,0.492,4466.7,4466.6,0.3937]
[1756612025498,0.2018,4466.7,4466.5,3.2078]
[1756612025695,0.492,4466.7,4466.6,0.227]
[1756612025998,0.492,4466.7,4466.6,0.4232]
[1756612026409,0.492,4466.7,4466.6,0.6207]
[1756612030412,0.492,4466.7,4466.6,0.3937]
[1756612030714,0.492,4466.7,4466.6,0.6207]
[1756612031611,0.492,4466.7,4466.6,0.227]
[1756612032206,0.492,4466.7,4466.2,0.1976]
[1756612032413,0.1904,4466.2,4466.1,0.3834]
[1756612032610,0.4741,4466.2,4466.1,0.6104]
[1756612033314,0.4741,4466.2,4466.1,0.3834]
[1756612033513,0.4741,4466.2,4466.1,0.6104]
[1756612033815,0.4741,4466.2,4466.1,0.3834]
[1756612034014,0.4741,4466.2,4466.1,0.4128]
[1756612034413,0.4741,4466.1,4466.0,3.4348]
[1756612035113,0.4741,4466.1,4466.0,3.8182]
[1756612035318,0.2837,4467.0,4466.1,0.1976]
[1756612035515,0.50758,4467.0,4466.1,0.1976]
[1756612035716,0.2837,4467.0,4466.2,0.1976]
[1756612035918,0.4741,4467.0,4466.9,0.3834]
[1756612038120,0.4741,4467.0,4466.9,0.6104]
[1756612038316,3.2078,4467.6,4466.9,0.4128]
[1756612038619,0.4741,4467.5,4467.4,0.3834]
[1756612038820,0.2837,4467.5,4467.4,0.3834]
[1756612039120,0.4741,4467.5,4467.4,0.3834]
[1756612039319,0.2837,4468.0,4467.5,0.1976]
[1756612039519,0.50753001,4468.0,4467.4,0.1976]
[1756612039716,0.2837,4468.0,4467.4,0.1976]
[1756612039917,0.4741,4468.0,4467.9,0.1858]
[1756612040115,0.4741,4468.0,4467.9,0.3834]
[1756612040420,0.2837,4468.0,4467.9,0.3834]
[1756612040626,0.4741,4468.0,4467.9,0.3834]
[1756612041321,0.4741,4468.0,4467.9,0.1976]
[1756612041525,3.2078,4468.2,4467.8,0.3834]
[1756612041822,0.4741,4467.9,4467.8,0.3834]
[1756612042124,0.1904,4467.6,4467.5,3.2078]
[1756612042418,0.4741,4467.6,4467.4,0.227]
[1756612042819,0.1904,4467.6,4467.4,0.4251]
[1756612043021,0.4741,4467.5,4467.4,0.6109]
[1756612043326,3.2078,4468.2,4467.5,0.1981]
[1756612043520,0.2837,4468.1,4467.5,0.1981]
[1756612044727,0.4741,4468.1,4468.0,0.3839]
[1756612044923,0.4741,4468.1,4467.8,0.227]
[1756612045227,0.4741,4468.0,4467.9,0.3839]
[1756612049024,0.2837,4468.7,4468.1,0.60093]
[1756612049326,0.2837,4468.8,4468.3,0.1981]
[1756612049522,0.1904,4468.5,4468.4,0.3839]
[1756612049716,0.4741,4468.5,4468.4,0.3839]
[1756612050729,0.4741,4468.5,4468.4,0.1858]
[1756612050926,0.4741,4468.4,4468.3,3.2078]
[1756612051422,0.4741,4467.1,4467.0,3.2078]
[1756612052025,0.4741,4467.1,4467.0,3.3936]
[1756612052425,0.4741,4467.1,4467.0,3.5917]
[1756612052625,0.106,4468.2,4467.0,3.5917]
[1756612052825,0.2837,4468.1,4467.1,0.1981]
[1756612053026,0.50753001,4468.1,4467.2,0.227]
[1756612053226,0.2837,4468.1,4467.2,0.227]
[1756612053432,0.1904,4467.3,4467.2,0.4128]
[1756612053629,0.4741,4467.3,4467.2,0.6109]
[1756612054126,0.2837,4468.1,4467.2,0.4128]
[1756612054331,0.2837,4468.3,4467.3,0.1981]
[1756612055030,0.4741,4468.3,4468.2,0.3839]
[1756612056933,0.4741,4468.3,4468.1,0.227]
[1756612057236,0.2837,4468.2,4468.1,0.6109]
[1756612057437,0.4741,4468.2,4468.1,0.6109]
[1756612057936,0.4741,4468.2,4468.0,3.2078]
[1756612058237,0.4741,4468.2,4468.1,0.228]
[1756612058636,0.4886,4467.4,4467.3,3.4028]
[1756612058833,0.4886,4467.4,4467.3,3.6308]
[1756612060838,0.4886,4467.4,4467.3,3.8283]
[1756612061038,0.4886,4467.4,4467.3,0.423]
[1756612061345,0.4886,4467.4,4467.3,0.195]
[1756612061528,0.4886,4467.4,4467.3,0.423]
[1756612061838,0.4886,4467.4,4467.3,0.6205]
[1756612064735,0.4886,4467.4,4467.3,0.3925]
[1756612064940,0.4886,4467.4,4467.1,0.227]
[1756612065538,0.4886,4467.4,4467.1,0.4245]
[1756612065737,0.4886,4466.9,4466.8,3.4028]
[1756612065938,0.4886,4466.9,4466.8,3.6298]
[1756612066242,0.4886,4466.9,4466.8,3.8273]
[1756612067436,0.4886,4466.9,4466.8,3.6298]
[1756612067637,0.4886,4466.9,4466.8,0.422]
[1756612068138,0.202,4466.9,4466.3,3.2078]
[1756612068343,0.4886,4466.4,4466.3,3.2078]
[1756612068643,0.4886,4466.4,4466.3,3.6298]
[1756612070536,0.4886,4466.4,4466.3,3.8273]
[1756612071646,0.4886,4466.4,4466.3,3.4348]
[1756612071839,0.4886,4466.4,4465.9,0.1975]
[1756612072039,0.4886,4466.4,4466.0,0.227]
[1756612072544,0.4886,4466.4,4466.0,0.4245]
[1756612072746,0.202,4466.1,4466.0,0.6195]
[1756612072949,0.4886,4466.1,4466.0,0.6195]
[1756612075645,0.4886,4466.1,4466.0,0.227]
[1756612076850,0.202,4465.7,4465.6,3.2078]
[1756612077048,0.4886,4465.7,4465.6,3.2078]
[1756612077239,0.2866,4466.0,4465.6,3.6003]
[1756612077547,0.2866,4466.4,4465.7,0.1975]
[1756612077948,0.4886,4465.8,4465.7,0.3925]
[1756612078247,0.4886,4465.8,4465.7,0.6195]
[1756612082351,0.2866,4465.8,4465.7,0.6195]
[1756612083264,0.4886,4465.8,4465.7,0.6195]
[1756612093870,3.2078,4466.5,4465.8,0.1978]
[1756612094171,0.3022,4466.4,4465.8,0.1978]
[1756612094361,0.1961,4466.0,4465.9,0.4127]
[1756612094566,0.4983,4466.0,4465.9,0.6105]
[1756612095468,3.2078,4466.5,4466.0,0.1978]
[1756612095671,0.4983,4466.4,4466.3,0.1857]
[1756612095872,0.4983,4466.4,4466.3,0.3835]
[1756612096768,0.4983,4466.4,4466.0,0.1978]
[1756612097076,0.4983,4466.4,4465.9,0.227]
[1756612097373,0.1961,4466.4,4466.3,0.1857]
[1756612097672,0.4983,4466.4,4466.3,0.3835]
[1756612102280,0.3022,4466.4,4466.3,0.3835]
[1756612103477,0.4983,4466.4,4466.3,0.3835]
[1756612103678,0.4983,4466.4,4466.3,0.384]
[1756612107675,0.3022,4466.4,4466.3,0.384]
[1756612107982,0.4983,4466.4,4466.3,0.384]
[1756612109282,0.4983,4466.4,4466.3,0.1857]
[1756612109481,0.4983,4466.4,4466.2,0.227]
[1756612110082,0.4983,4466.3,4466.2,0.611]
[1756612111582,0.3022,4466.3,4466.2,0.611]
[1756612113083,0.4983,4466.3,4466.2,0.611]
[1756612114185,0.4983,4466.3,4466.2,0.227]
[1756612114778,0.4983,4466.3,4466.2,0.611]
[1756612116692,0.4983,4466.3,4466.2,0.227]
[1756612117194,0.3022,4466.2,4466.1,3.2078]
[1756612117390,0.4983,4466.2,4466.1,3.2078]
[1756612125794,0.4983,4466.2,4466.1,3.6079]
[1756612129199,0.4858,4466.8,4466.7,0.4001]
[1756612142809,0.4858,4466.8,4466.6,3.2078]
[1756612143010,0.4858,4466.7,4466.6,3.2078]
[1756612143207,0.4858,4466.5,4466.4,0.4249]
[1756612143509,0.4858,4466.5,4466.4,0.6271]
[1756612143707,0.1998,4466.2,4466.1,3.2078]
[1756612143905,0.4858,4466.2,4466.1,3.2078]
[1756612144107,0.4858,4466.2,4466.0,0.227]
[1756612147613,0.1998,4466.2,4465.6,3.6327]
[1756612147912,0.483,4465.7,4465.6,3.8246]
[1756612160831,0.2891,4465.7,4465.6,3.8246]
[1756612164933,3.4348,4467.1,4465.6,3.8246]
[1756612165135,0.2239,4467.0,4465.7,0.1978]
[1756612165430,0.2239,4467.0,4465.9,0.1978]
[1756612165431,0.2891,4466.9,4465.9,0.1978]
[1756612165633,0.483,4466.0,4465.9,0.3902]
[1756612174942,0.483,4466.0,4465.8,0.227]
[1756612175438,0.483,4466.0,4465.8,0.4248]
[1756612175639,0.483,4465.9,4465.8,0.4248]
[1756612175840,0.483,4465.9,4465.8,0.6172]
[1756612178644,0.483,4465.9,4465.8,0.227]
[1756612182544,3.2078,4469.4,4465.8,4.227]
[1756612182745,3.2078,4468.6,4468.3,0.40281]
[1756612182946,0.184,4469.3,4468.4,0.22]
[1756612183148,0.4869,4469.5,4469.1,3.2078]
[1756612183349,0.3029,4469.3,4469.2,0.228]
[1756612184249,0.4869,4469.3,4469.2,0.228]
[1756612193149,0.4869,4470.0,4469.9,0.40267]
[1756612193548,0.4869,4470.0,4469.9,0.63067]
[1756612193743,0.4029,4470.2,4470.1,0.40265]
[1756612193949,0.4029,4470.2,4470.1,0.63065]
[1756612194248,0.4029,4470.2,4470.1,3.83845]
[1756612195350,0.1,4470.2,4470.1,3.83845]
[1756612195546,0.4869,4471.6,4471.5,0.40252]
[1756612195746,0.4869,4471.6,4471.5,0.63052]
[1756612196851,0.184,4471.6,4471.2,0.40254]
[1756612197051,0.184,4471.4,4471.3,0.228]
[1756612197249,0.4869,4471.4,4471.3,0.228]
[1756612197953,0.4869,4471.3,4471.2,0.40254]
[1756612198152,0.4869,4471.3,4471.2,0.63054]
[1756612199049,0.4869,4472.2,4472.1,0.40247]
[1756612199253,1.3,4474.6,4472.7,10.06047]
[1756612199555,0.184,4473.2,4473.1,0.40238]
[1756612199750,3.2078,4474.4,4473.3,0.40236]
[1756612199947,0.3029,4474.3,4473.4,0.229]
[1756612200149,0.3029,4474.3,4473.9,0.40231]
[1756612200354,1.484,4474.6,4474.1,3.2078]
[1756612200553,1.3,4474.6,4474.1,3.2078]
[1756612200748,0.184,4474.2,4474.1,3.2078]
[1756612200955,0.4869,4474.2,4474.1,3.2078]
[1756612201353,0.4869,4474.2,4473.9,3.2078]
[1756612201551,0.4869,4474.2,4470.3,10.06577]
[1756612201552,0.184,4473.7,4473.4,3.2078]
[1756612201754,0.4869,4473.7,4473.6,0.229]
[1756612202151,0.3029,4473.6,4473.4,3.2078]
[1756612202356,0.4869,4473.5,4473.4,3.2078]
[1756612202553,0.4869,4473.5,4473.4,3.4378]
[1756612203060,0.4869,4473.5,4473.4,0.23]
[1756612203253,0.3029,4472.9,4472.2,3.2078]
[1756612203451,0.4869,4472.3,4472.2,3.2078]
[1756612203657,3.2078,4473.2,4472.2,3.4378]
[1756612203855,0.184,4472.3,4472.2,3.4378]
[1756612204359,0.4869,4472.3,4472.2,3.4378]
[1756612204955,0.3029,4473.1,4472.2,3.4378]
[1756612205356,3.2078,4473.2,4472.2,3.4378]
[1756612205556,0.184,4472.3,4472.2,3.2078]
[1756612205757,0.4869,4472.3,4472.2,3.4378]
[1756612206258,3.2078,4473.2,4472.2,3.4378]
[1756612206661,0.3029,4473.7,4472.2,3.4378]
[1756612206854,3.2078,4473.8,4472.2,3.4378]
[1756612207055,3.2078,4473.3,4472.2,3.4378]
[1756612207455,0.3032,4473.2,4472.2,3.4378]
[1756612207960,0.3032,4474.5,4472.9,3.2078]
[1756612208163,0.1851,4474.1,4474.0,3.2078]
[1756612208461,0.4883,4474.1,4474.0,0.23]
[1756612208854,0.3032,4474.1,4474.0,0.23]
[1756612209561,0.4883,4474.1,4473.4,3.2078]
[1756612210061,1.3,4474.6,4473.5,0.23]
[1756612210256,0.3032,4474.5,4473.4,3.2078]
[1756612210455,0.3032,4474.5,4473.5,0.23]
[1756612212059,0.3032,4474.5,4472.7,32.213]
[1756612212060,0.4883,4473.5,4472.9,3.2078]
[1756612212255,0.3032,4473.1,4472.9,3.2078]
[1756612212461,0.3032,4473.4,4473.0,0.23]
[1756612213162,0.3032,4473.3,4473.1,0.23]
[1756612213555,0.3032,4474.4,4473.1,0.23]
[1756612213754,0.4883,4473.0,4472.9,3.2078]
[1756612213961,0.4883,4473.0,4472.9,3.4378]
[1756612214165,0.3032,4473.0,4472.9,3.4378]
[1756612214964,0.4883,4473.0,4472.9,3.4378]
[1756612215359,0.4883,4473.0,4472.9,3.2078]
[1756612215862,0.4883,4472.5,4472.4,3.2078]
[1756612216164,0.4883,4472.5,4472.4,3.4378]
[1756612217269,0.4883,4472.5,4472.4,3.2078]
[1756612217466,0.4883,4472.5,4472.4,3.4378]
[1756612217962,0.4883,4472.5,4472.4,3.2078]
[1756612218164,0.4883,4472.4,4472.3,0.23]
[1756612218865,0.3032,4472.3,4471.8,3.2078]
[1756612219067,0.3032,4473.1,4471.9,0.23]
[1756612219366,0.4883,4471.9,4471.8,3.2078]
[1756612219661,0.4883,4471.4,4471.3,3.2078]
[1756612220665,0.3032,4471.4,4471.3,3.2078]
[1756612220866,0.4883,4471.4,4471.3,3.2078]
[1756612221064,0.4883,4471.4,4471.3,3.4378]
[1756612223573,0.4883,4471.4,4471.3,0.23]
[1756612225774,0.4883,4471.3,4470.6,3.2078]
[1756612225977,0.1851,4470.8,4470.7,0.23]
[1756612226180,0.4883,4470.8,4470.7,0.23]
[1756612227182,0.1851,4470.8,4470.7,0.23]
[1756612227783,0.4883,4470.8,4470.7,0.23]
[1756612227976,0.4883,4470.7,4470.6,3.2078]
[1756612228176,0.4883,4470.7,4470.6,3.4378]
[1756612229482,1.2137,4473.4,4470.8,0.40258]
[1756612229483,3.2078,4472.5,4470.8,0.40258]
[1756612229679,3.2078,4472.5,4471.1,3.2078]
[1756612229880,0.52683,4472.4,4471.2,0.23]
[1756612230079,0.1851,4471.3,4471.2,0.23]
[1756612230284,0.4883,4471.3,4471.2,0.23]
[1756612230884,0.3032,4471.3,4471.2,0.23]
[1756612231083,0.3032,4472.4,4471.2,0.23]
[1756612231284,0.52682,4472.4,4471.2,0.23]
[1756612231485,0.3032,4472.4,4471.2,0.23]
[1756612232386,0.4883,4471.3,4471.2,0.23]
[1756612232982,0.3032,4472.4,4471.2,0.23]
[1756612233188,0.3032,4472.4,4471.4,0.40253]
[1756612233379,0.3032,4472.4,4471.5,0.23]
[1756612235589,0.1851,4471.6,4471.5,0.23]
[1756612235789,0.4883,4471.6,4471.5,0.23]
[1756612235989,0.4883,4471.2,4471.1,3.2078]
[1756612236190,0.4883,4471.2,4471.1,3.4368]
[1756612236391,3.2078,4472.5,4471.1,3.4368]
[1756612236689,0.3032,4472.3,4471.1,3.4368]
[1756612237083,3.2078,4472.5,4471.1,3.2078]
[1756612237287,0.4883,4471.2,4471.1,3.2078]
[1756612237488,0.4883,4471.2,4471.1,3.4368]
[1756612237688,0.3032,4471.2,4471.1,3.4368]
[1756612237883,0.2914,4472.4,4471.1,3.4368]
[1756612238090,0.2914,4472.3,4471.1,3.4368]
[1756612238284,0.22362,4472.4,4471.1,3.4368]
[1756612238489,0.2914,4472.3,4471.1,3.4368]
[1756612238690,0.2914,4472.4,4471.1,3.4368]
[1756612238889,0.2914,4472.3,4471.2,0.229]
[1756612239293,1.3461,4472.2,4471.2,0.229]
[1756612239492,0.2914,4472.1,4471.2,0.229]
[1756612240790,0.4826,4472.1,4471.2,0.63154]
[1756612240989,0.1912,4472.1,4471.2,0.63154]
[1756612241191,0.4826,4472.0,4471.2,0.63154]
[1756612241990,0.4826,4471.9,4471.2,0.63154]
[1756612242191,0.2914,4471.8,4471.2,0.229]
[1756612242895,0.4826,4471.8,4471.2,0.229]
[1756612243990,1.5373,4472.2,4471.3,0.22364]
[1756612244197,1.5373,4472.2,4471.7,3.2078]
[1756612244390,1.8287,4472.2,4471.8,0.229]
[1756612244588,0.2914,4472.0,4471.8,0.229]
[1756612246291,1.3461,4472.2,4471.8,0.229]
[1756612246489,3.2078,4473.9,4472.9,0.2906]
[1756612246689,3.2078,4473.9,4473.1,0.2906]
[1756612248395,1.2218,4473.8,4473.1,0.2906]
[1756612248695,0.4826,4473.7,4473.6,0.1911]
[1756612248899,0.1912,4473.7,4473.6,0.1911]
[1756612249196,0.4826,4473.7,4473.6,0.1911]
[1756612249388,0.4826,4473.7,4473.5,0.23]
[1756612250489,0.4826,4473.7,4473.0,0.2906]
[1756612250798,0.4826,4473.0,4472.9,3.2078]
[1756612250997,0.4826,4473.0,4472.9,3.4378]
[1756612251197,0.4826,4473.0,4472.9,3.6289]
[1756612252600,1.2218,4473.8,4473.0,0.2906]
[1756612252793,0.4826,4473.1,4473.0,0.4817]
[1756612254092,0.4826,4473.1,4473.0,0.23]
[1756612255197,0.2914,4473.5,4473.0,0.7117]
[1756612255393,0.1912,4473.2,4473.1,0.4817]
[1756612255600,0.4826,4473.2,4473.1,0.4817]
[1756612256498,0.4826,4473.2,4473.1,0.1911]
[1756612256791,0.4826,4473.2,4473.1,0.23]
[1756612257600,0.4826,4473.0,4472.9,3.4378]
[1756612257995,0.4826,4473.0,4472.3,3.4984]
[1756612258196,0.2914,4473.2,4472.4,0.23]
[1756612258392,0.1912,4472.6,4472.5,0.4817]
[1756612258601,0.4826,4472.6,4472.5,0.4817]
[1756612258804,0.4826,4472.6,4472.5,0.7117]
[1756612260205,0.4826,4472.6,4472.5,0.4817]
[1756612260400,0.4826,4472.6,4472.5,0.7117]
[1756612261104,0.4826,4472.6,4472.5,0.4817]
[1756612261407,0.4826,4472.6,4472.5,0.7117]
[1756612262707,0.1912,4473.2,4473.1,0.4817]
[1756612262901,4.4296,4473.8,4473.1,3.6289]
[1756612263101,0.2914,4473.7,4473.2,0.2906]
[1756612263301,0.4826,4473.7,4473.6,0.1911]
[1756612266707,0.4826,4473.7,4473.6,0.4817]
[1756612267007,0.4826,4473.7,4473.6,0.1911]
[1756612267208,0.4826,4473.7,4473.4,0.23]
[1756612268010,0.4826,4473.7,4473.2,0.2906]
[1756612268205,0.4826,4473.7,4473.4,0.23]
[1756612268605,0.4953,4473.7,4473.6,0.1895]
[1756612269310,0.4877,4473.5,4473.4,1.10615]
[1756612269812,0.4877,4473.5,4473.4,0.7038]
[1756612270105,1.2218,4473.8,4473.4,0.82185]
[1756612270312,0.4877,4473.7,4473.6,0.4738]
[1756612270505,1.2218,4473.8,4473.6,3.6816]
[1756612270704,0.4877,4474.0,4473.9,0.4738]
[1756612271301,3.2078,4474.4,4473.9,0.4738]
[1756612271507,3.3914,4474.4,4474.3,0.1895]
[1756612271814,3.3914,4474.4,4474.0,0.2843]
[1756612272108,0.3041,4474.3,4474.0,0.2843]
[1756612272415,0.4877,4474.1,4474.0,0.4738]
[1756612273609,4.7131,4474.4,4474.1,0.40229]
[1756612273811,0.4877,4474.3,4474.2,0.4738]
[1756612274112,1.5053,4474.4,4474.2,0.82077]
[1756612274313,1.5053,4474.4,4474.3,0.4738]
[1756612274911,1.5053,4474.4,4474.3,0.65007056]
[1756612275107,1.5053,4474.4,4474.3,0.4738]
[1756612275514,1.8094,4474.4,4474.3,0.4738]
[1756612275711,1.993,4474.4,4474.3,0.7028]
[1756612275914,1.5053,4474.4,4474.3,0.7028]
[1756612276107,1.5053,4474.4,4474.3,0.4738]
[1756612276813,1.5053,4474.4,4474.3,0.7028]
[1756612277209,1.993,4474.4,4474.3,0.7028]
[1756612278221,1.993,4474.4,4474.3,0.4738]
[1756612278521,1.993,4474.4,4474.3,0.7028]
[1756612278917,1.5053,4474.4,4474.1,3.2078]
[1756612279224,0.4877,4474.2,4474.1,3.2078]
[1756612279418,0.4877,4474.2,4474.1,3.4368]
[1756612279716,0.4877,4474.2,4474.1,3.2078]
[1756612281223,0.4877,4474.2,4474.1,3.4368]
[1756612281924,0.4877,4474.2,4474.1,0.229]
[1756612282128,1.5053,4474.4,4473.6,3.79963]
[1756612282129,0.1836,4473.7,4473.6,3.79963]
[1756612282323,0.4877,4473.7,4473.6,4.31293]
[1756612282524,0.4877,4474.3,4474.2,0.4738]
[1756612282715,0.4877,4474.3,4474.2,0.7028]
[1756612285028,0.4877,4474.3,4474.2,0.4738]
[1756612285227,0.4877,4474.3,4474.2,0.7028]
[1756612285620,0.4877,4474.3,4474.2,0.229]
[1756612286728,1.5053,4474.4,4473.6,3.2078]
[1756612286729,0.3041,4474.2,4473.6,3.2078]
[1756612286929,0.4877,4473.7,4473.6,3.2078]
[1756612287328,0.1836,4473.7,4473.4,32.198]
[1756612287527,0.4877,4473.5,4473.4,32.198]
[1756612287825,0.4877,4473.5,4473.4,32.427]
[1756612289725,0.4877,4473.5,4473.4,0.229]
[1756612290929,0.4877,4473.5,4473.4,0.4185]
[1756612292428,0.4877,4473.5,4473.4,0.7028]
[1756612292628,0.1836,4473.5,4473.4,0.7028]
[1756612292824,0.3041,4474.0,4473.5,0.2843]
[1756612293023,0.4877,4473.6,4473.5,0.4738]
[1756612293926,3.2078,4474.1,4473.5,0.4738]
[1756612294134,0.4877,4473.8,4473.7,3.6816]
[1756612294335,0.4877,4473.8,4473.7,3.9106]
[1756612297731,0.4877,4473.8,4473.7,3.6816]
[1756612297934,0.4877,4473.8,4473.7,3.9106]
[1756612298839,0.4877,4473.8,4473.7,3.3973]
[1756612299136,0.4877,4473.8,4473.7,0.229]
[1756612299331,0.4877,4473.8,4473.6,0.229]
[1756612300138,0.4877,4473.8,4473.1,0.2782]
[1756612300340,0.4877,4473.8,4473.5,0.229]
[1756612301741,0.1836,4473.8,4473.1,0.68057]
[1756612302037,0.284,4473.4,4473.2,0.5072]
[1756612302242,0.4768,4473.4,4473.3,0.477]
[1756612303939,0.4768,4473.4,4473.3,0.706]
[1756612304746,0.4768,4473.4,4473.3,0.4278]
[1756612305647,0.4768,4473.4,4473.0,4.486]
[1756612305848,0.284,4473.3,4473.1,0.5072]
[1756612306149,0.4768,4473.2,4473.1,0.706]
[1756612307849,0.4768,4473.2,4473.1,0.477]
[1756612308145,0.4768,4473.2,4473.1,0.706]
[1756612309348,0.4768,4473.2,4473.1,0.477]
[1756612309648,0.4768,4473.2,4473.1,0.705]
[1756612309844,0.4768,4473.2,4473.1,0.1988]
[1756612310040,0.4768,4473.2,4473.1,0.228]
[1756612310949,0.4768,4473.1,4473.0,4.2078]
[1756612311155,0.4768,4473.1,4473.0,4.4358]
[1756612312046,0.4768,4473.1,4473.0,4.2078]
[1756612312254,0.1928,4472.2,4472.1,0.2782]
[1756612312545,0.4768,4472.2,4472.1,0.477]
[1756612314052,0.4768,4472.2,4472.1,0.4268]
[1756612315151,0.4768,4472.2,4472.1,0.228]
[1756612317045,1.4212,4472.3,4472.2,0.87946]
[1756612319258,1.898,4472.3,4472.2,0.705]
[1756612320653,1.898,4472.3,4472.2,0.477]
[1756612320857,1.898,4472.3,4472.2,0.4268]
[1756612321156,0.1928,4472.1,4472.0,3.2078]
[1756612321357,0.4768,4472.1,4472.0,3.4358]
[1756612321560,0.4768,4472.1,4472.0,3.9128]
[1756612322159,0.4768,4472.1,4472.0,3.2078]
[1756612322458,0.4768,4472.1,4472.0,3.4358]
[1756612322957,0.4768,4472.1,4472.0,3.9128]
[1756612325661,0.4768,4472.1,4472.0,3.6848]
[1756612325960,0.4768,4472.1,4472.0,3.4358]
[1756612327362,0.4768,4472.1,4472.0,3.2078]
[1756612327562,0.4768,4472.1,4472.0,3.4358]
[1756612327951,0.4768,4472.1,4471.5,3.2078]
[1756612328157,0.4989,4471.6,4471.5,3.2078]
[1756612328756,0.4989,4471.6,4471.1,0.5184]
[1756612328959,3.2078,4471.9,4471.1,0.5184]
[1756612329158,0.4989,4471.2,4471.1,0.7154]
[1756612330364,0.4989,4471.2,4471.1,0.425]
[1756612330860,0.3025,4471.8,4471.1,0.425]
[1756612331063,0.4989,4471.8,4471.7,0.197]
[1756612331265,0.4989,4471.8,4471.7,0.4874]
[1756612331658,0.4989,4471.8,4471.6,0.228]
[1756612331859,0.4989,4471.8,4471.4,0.228]
[1756612332361,0.1964,4471.5,4471.4,0.5184]
[1756612332565,0.4989,4471.5,4471.4,0.7154]
[1756612333469,0.3025,4471.8,4471.5,0.2904]
[1756612333669,0.3025,4471.8,4471.7,0.197]
[1756612334165,0.4989,4471.8,4471.7,0.197]
[1756612334372,0.4989,4471.8,4471.7,0.4874]
[1756612335471,1.4212,4472.3,4471.7,0.4874]
[1756612335472,0.3025,4472.2,4471.7,0.197]
[1756612335771,0.1964,4472.2,4472.1,0.197]
[1756612335966,0.4989,4472.2,4472.1,0.4874]
[1756612339873,0.4989,4472.2,4471.8,0.2904]
[1756612340167,0.1964,4472.2,4471.6,3.2078]
[1756612340372,0.4989,4471.8,4471.7,0.4874]
[1756612340562,0.4989,4471.7,4471.6,4.0977]
[1756612341270,0.4989,4471.7,4471.6,3.6952]
[1756612341976,0.4989,4471.7,4471.6,0.4874]
[1756612342179,0.4989,4471.7,4471.6,0.197]
[1756612342373,0.4989,4471.7,4471.1,3.61035]
[1756612342679,0.4989,4471.6,4471.5,0.4877]
[1756612342977,0.4989,4471.6,4471.5,3.6955]
[1756612343172,0.3025,4472.2,4471.6,0.2907]
[1756612343477,0.4989,4472.2,4472.1,0.197]
[1756612344279,0.4989,4472.2,4471.9,0.2907]
[1756612346275,0.3025,4472.1,4471.8,0.2907]
[1756612346482,0.1964,4472.1,4472.0,0.197]
[1756612346681,0.4989,4472.1,4472.0,0.197]
[1756612347783,0.4989,4472.1,4472.0,0.4877]
[1756612348479,0.4989,4472.1,4472.0,0.197]
[1756612348881,0.4989,4472.1,4471.7,0.2907]
[1756612349180,0.3025,4472.0,4471.7,0.2907]
[1756612349483,0.4989,4471.8,4471.7,0.4877]
[1756612350181,0.4989,4471.8,4471.7,0.197]
[1756612350584,0.3025,4471.7,4471.5,3.4985]
[1756612350880,0.4989,4471.6,4471.5,3.2078]
[1756612351085,2.1006,4471.6,4471.5,3.2078]
[1756612352485,2.1006,4471.6,4471.5,3.6955]
[1756612352985,1.6017,4471.6,4471.5,3.6955]
[1756612353386,1.9042,4471.6,4471.5,3.6955]
[1756612354687,1.6017,4471.6,4471.5,3.6955]
[1756612354888,1.7981,4471.6,4471.5,3.6955]
[1756612355091,2.1006,4471.6,4471.5,3.6955]
[1756612358988,2.1006,4471.6,4471.5,0.197]
[1756612359185,2.1006,4471.6,4471.3,0.228]
[1756612359488,1.7981,4471.6,4471.3,0.5128]
[1756612359682,0.4749,4471.4,4471.3,0.7015]
[1756612360599,0.4749,4471.4,4471.3,0.4167]
[1756612360900,0.4749,4471.4,4471.2,0.228]
[1756612361101,0.4749,4471.4,4471.3,0.4735]
[1756612362599,0.104,4472.2,4471.3,0.4735]
[1756612362902,0.2802,4472.1,4471.4,0.2848]